fUSD/lending_fUSD_20250330
["ID","MTS","AMOUNT","RATE_DAILY","PERIOD"]
[356880840,1743364231982,-219.1418345,0.0001499,2]
[356880842,1743364231994,-6895.73823836,0.00015,2]
[356880843,1743364232007,-866.6658,0.00015,2]
[356880844,1743364232019,-1771.45420964,0.00015,2]
[356880845,1743364232031,-5358.28634486,0.00015,2]
[356880862,1743364237416,-284.57940497,0.000149,2]
[356880863,1743364237427,-426.77391521,0.000149,2]
[356880864,1743364237438,-288.64667982,0.000149,2]
[356880865,1743364237447,-460.16927068,0.00015,2]
[356880866,1743364237470,-8746.35016993,0.00015,2]
[356880867,1743364237481,-1771.25319966,0.00015,2]
[356880868,1743364237524,-43599.99981712,0.00015,2]
[356880869,1743364237535,-4400.0,0.00015,2]
[356880870,1743364237578,-19372.5,0.00015,2]
[356880871,1743364237632,-2314.32981011,0.00015,2]
[356880872,1743364237644,-2587.42803,0.00015,2]
[356880873,1743364237655,-4442.40000004,0.00015,2]
[356880899,1743364239572,-1157.65390319,0.00015,2]
[356880900,1743364239783,-199491.96159931,0.00015,2]
[356880901,1743364239793,-84265.61818733,0.00015,2]
[356880902,1743364239838,-2354.59119514,0.00015,2]
[356880909,1743364242574,-11024.22302619,0.00015,2]
[356880910,1743364242585,-3734.89111475,0.00015,2]
[356880911,1743364242596,-381811.00044412,0.00015,2]
[356880912,1743364242630,-137194.59346535,0.00015,2]
[356880913,1743364242641,-475.4551127,0.00015,2]
[356880915,1743364244038,-10025.0000001,0.00015,2]
[356880918,1743364245478,-1962.17322178,0.00015,2]
[356880919,1743364245532,-7585.16741695,0.00015,2]
[356880920,1743364245586,-621.27211919,0.00015,2]
[356880921,1743364245597,-604.47387,0.00015,2]
[356880922,1743364245744,-1267980.29743913,0.00015,2]
[356880923,1743364245756,-498852.22233051,0.00015,2]
[356880924,1743364245767,-455.02500001,0.00015,2]
[356880927,1743364381816,-299.28208993,0.00014899,2]
[356880928,1743364385215,246.76976,0.0001861,20]
[356880933,1743364805044,-158.57130424,0.0001489,2]
[356880934,1743364978387,-192.5956,0.0001489,2]
[356880936,1743365095846,-541.76275365,0.0001489,2]
[356880937,1743365095868,-150.0,0.00014899,2]
[356880938,1743365095889,-1000.0,0.000149,2]
[356880939,1743365095912,-1312.85894635,0.000149,2]
[356880953,1743365431631,-490.16420856,0.00014899,2]
[356880954,1743365431640,-459.2535699,0.00014899,2]
[356880955,1743365431649,-150.0,0.00014899,2]
[356880956,1743365431658,-300.0,0.00014899,2]
[356880957,1743365431667,-34685.62345365,0.000149,2]
[356880958,1743365431676,-500.0,0.000149,2]
[356880959,1743365431685,-534.7088,0.000149,2]
[356880960,1743365431694,-1124.9986,0.000149,2]
[356880961,1743365431703,-3026.1158,0.000149,2]
[356880962,1743365431712,-22063.01551337,0.000149,2]
[356880963,1743365431722,-4407.26800177,0.000149,2]
[356880964,1743365431733,-1498.37856869,0.000149,2]
[356880965,1743365431744,-327.29223242,0.000149,2]
[356880966,1743365431755,-38715.24238375,0.000149,2]
[356880967,1743365431764,-457.8534,0.000149,2]
[356880968,1743365431773,-1106.8731,0.000149,2]
[356880969,1743365431782,-272.6911,0.000149,2]
[356880970,1743365431791,-420.89,0.000149,2]
[356880971,1743365431800,-261.3326,0.000149,2]
[356880972,1743365431809,-1000.0,0.000149,2]
[356880973,1743365431818,-2063.61741625,0.000149,2]
[356880974,1743365431829,-1199.30488375,0.000149,2]
[356880975,1743365431838,-138.79736173,0.000149,2]
[356880976,1743365431853,-542.16718762,0.000149,2]
[356880977,1743365431898,-497.16980783,0.000149,2]
[356880978,1743365431909,-809.87798182,0.000149,2]
[356880979,1743365431920,-511.987661,0.000149,2]
[356880980,1743365431929,-328.012339,0.00014973,2]
[356880981,1743365431940,-172.88962586,0.00014973,2]
[356880982,1743365431949,-444.02285905,0.00014973,2]
[356880983,1743365431958,-342.03525351,0.0001499,2]
[356880984,1743365431967,-169.56705614,0.0001499,2]
[356880985,1743365431976,-190.75898699,0.00014999,2]
[356880986,1743365431985,-4546.31685533,0.00015,2]
[356880987,1743365431996,-100618.97426085,0.00015,2]
[356880988,1743365432008,-320.29041264,0.00015,2]
[356881003,1743365437578,-713.93834854,0.00015,2]
[356881004,1743365437590,-430.885,0.00015,2]
[356881005,1743365437631,-428.7000009,0.00015,2]
[356881006,1743365437688,-5175.84,0.00015,2]
[356881007,1743365437699,-1677.819315,0.00015,2]
[356881008,1743365437793,-419.515,0.00015,2]
[356881009,1743365437805,-294699.99999975,0.00015,2]
[356881021,1743365441534,-495.02,0.00015,2]
[356881022,1743365441556,-4419.73345387,0.00015,2]
[356881023,1743365441567,-493.80144382,0.00015,2]
[356881024,1743365441578,-591.39,0.00015,2]
[356881025,1743365441590,-1907.61631091,0.00015,2]
[356881026,1743365441601,-4287.36,0.00015,2]
[356881027,1743365441612,-3070.5981233,0.00015,2]
[356881028,1743365441623,-4277.0,0.00015,2]
[356881066,1743365443973,-41355.17049689,0.00015,2]
[356881067,1743365443985,-25935.52825494,0.00015,2]
[356881075,1743365445615,-981.52816192,0.00015,2]
[356881076,1743365445775,-1995.36753568,0.00015,2]
[356881077,1743365445786,-531.95670278,0.00015,2]
[356881078,1743365445881,-1009078.98042826,0.00015,2]
[356881079,1743365445891,-1936.27732623,0.00015979,2]
[356881080,1743365445900,-2053.74620813,0.00016179,2]
[356881081,1743365445909,-420.0,0.00016308,2]
[356881082,1743365445918,-350.0,0.00016389,3]
[356881083,1743365445927,-350.0,0.00016389,3]
[356881084,1743365445937,-350.0,0.0001639,3]
[356881085,1743365445946,-1003.51720839,0.00018344,2]
[356881086,1743365445955,-171.4326918,0.00019,2]
[356881087,1743365445965,-220.57323224,0.00019,2]
[356881088,1743365445973,-6214.95,0.00019339,2]
[356881089,1743365445983,-260.28,0.00019939,2]
[356881090,1743365445992,-500.0,0.00019979,2]
[356881091,1743365446001,-2045.49,0.00019991,2]
[356881092,1743365446011,-754.803756,0.0002,2]
[356881093,1743365446023,-7422.00283238,0.0002,4]
[356881094,1743365446032,-150.56,0.0002,2]
[356881095,1743365446042,-150.56,0.0002,2]
[356881096,1743365446052,-150.56,0.0002,2]
[356881097,1743365446061,-200.0,0.00020025,2]
[356881098,1743365446076,-250.0,0.00020081,2]
[356881099,1743365446085,-250.0,0.00020666,2]
[356881100,1743365446095,-200.0,0.00020715,2]
[356881101,1743365446104,-711.85,0.00020739,2]
[356881102,1743365446114,-1936.27732615,0.0002077,2]
[356881103,1743365446123,-186.41,0.00020932,2]
[356881104,1743365446133,-2053.74620811,0.00020946,2]
[356881105,1743365446143,-198.64,0.00020965,2]
[356881106,1743365446152,-3638.75,0.00021164,2]
[356881107,1743365446161,-2000.0,0.00021166,2]
[356881108,1743365446171,-29614.56,0.00021195,2]
[356881109,1743365446180,-150.0,0.00021197,2]
[356881110,1743365446189,-621.3,0.00021228,2]
[356881111,1743365446198,-1000.0,0.00021258,2]
[356881112,1743365446304,-500.0,0.0002126,2]
[356881113,1743365446318,-160.23,0.00021276,2]
[356881114,1743365446328,-23900.0,0.00021293,2]
[356881115,1743365446337,-214.46,0.00021311,2]
[356881116,1743365446347,-5139.24,0.00021452,2]
[356881117,1743365446356,-184.07,0.00021516,2]
[356881118,1743365446366,-3580.18,0.00021597,2]
[356881119,1743365446374,-150.0,0.00021785,7]
[356881120,1743365446383,-260.28,0.00022203,2]
[356881121,1743365446392,-1765.9,0.00022563,2]
[356881122,1743365446401,-1000.0,0.00023915,2]
[356881123,1743365446410,-4568.28,0.00024358,2]
[356881124,1743365446421,-260.28,0.00024467,2]
[356881125,1743365446431,-150.56,0.0002479,2]
[356881126,1743365446440,-316078.4985,0.000248,2]
[356881127,1743365446450,-150.56,0.0002489,2]
[356881128,1743365446459,-377064.943643,0.000249,2]
[356881129,1743365446470,-1006.58343,0.0002501,2]
[356881130,1743365446479,-334.99864947,0.000251,2]
[356881131,1743365446488,-200.0,0.000251,2]
[356881132,1743365446499,-1936.27732615,0.00025562,2]
[356881133,1743365446508,-2053.74620811,0.00025713,2]
[356881134,1743365446518,-166.66,0.0002619,2]
[356881135,1743365446527,-1000.0,0.00026573,2]
[356881136,1743365446536,-5024.59657304,0.00026671,2]
[356881137,1743365446545,-260.28,0.00026731,2]
[356881138,1743365446554,-180.93,0.00026849,2]
[356881139,1743365446563,-217.07,0.00026849,2]
[356881140,1743365446572,-219.996,0.00027459,16]
[356881141,1743365446582,-902.722,0.00027459,16]
[356881142,1743365446591,-2045.49,0.00027988,2]
[356881143,1743365446601,-260.28,0.00028995,2]
[356881144,1743365446610,-342.03525347,0.00029125,2]
[356881145,1743365446619,-1000.0,0.0002923,2]
[356881146,1743365446628,-508.0,0.00029781,2]
[356881147,1743365446637,-804.0,0.0002983,5]
[356881148,1743365446647,-1936.27732615,0.00030353,2]
[356881149,1743365446656,-2053.74620811,0.0003048,2]
[356881150,1743365446665,-260.28,0.00031259,2]
[356881151,1743365446674,-1000.0,0.00031887,2]
[356881152,1743365446683,-160.23,0.00031914,2]
[356881153,1743365446692,-217.07,0.00032646,2]
[356881154,1743365446701,-161.15,0.00032932,120]
[356881155,1743365446711,-3252.37424029,0.00033478,30]
[356881156,1743365446719,-260.28,0.00033523,2]
[356881157,1743365446728,-1936.27732615,0.00035144,2]
[356881158,1743365446738,-2053.74620811,0.00035247,2]
[356881159,1743365446747,-260.28,0.00035787,2]
[356881160,1743365446756,-664.3521786,0.000372,103]
[356881161,1743365446766,-664.35217856,0.000372,103]
[356881162,1743365446775,-260.28,0.0003805,2]
[356881163,1743365446784,-217.07,0.00038443,2]
[356881164,1743365446793,-1936.27732615,0.00039936,15]
[356881165,1743365446802,-10000.0,0.0004,120]
[356881166,1743365446812,-10000.0,0.0004,120]
[356881167,1743365446821,-10000.0,0.0004,120]
[356881168,1743365446831,-10000.0,0.0004,120]
[356881169,1743365446839,-10000.0,0.0004,120]
[356881170,1743365446849,-10000.0,0.0004,120]
[356881171,1743365446858,-10000.0,0.0004,120]
[356881172,1743365446867,-2053.74620811,0.00040013,15]
[356881173,1743365446875,-260.28,0.00040314,2]
[356881174,1743365446885,-1047.01082031,0.000425,2]
[356881175,1743365446894,-260.28,0.00042578,2]
[356881176,1743365446903,-150.56,0.0004272,2]
[356881177,1743365446912,-570.1776864,0.00042721,30]
[356881178,1743365446922,-80000.0,0.0004273,3]
[356881179,1743365446931,-342.03525347,0.0004326,11]
[356881180,1743365446940,-217.07,0.00044239,2]
[356881181,1743365446949,-920.65,0.000443,14]
[356881182,1743365446959,-1936.27732615,0.00044727,15]
[356881183,1743365446968,-2053.74620811,0.0004478,15]
[356881184,1743365446977,-260.28,0.00044842,2]
[356881185,1743365446986,-231.77046919,0.000449,120]
[356881186,1743365446995,-260.28,0.00047106,2]
[356881187,1743365447005,-150.0,0.00047923,120]
[356881188,1743365447015,-150.0,0.00047923,120]
[356881189,1743365447024,-500.0,0.00047973,120]
[356881190,1743365447033,-500.0,0.00047973,120]
[356881191,1743365447042,-534.04054185,0.00047973,120]
[356881192,1743365447051,-902.723,0.00048094,82]
[356881193,1743365447060,-209.21808484,0.00048795,30]
[356881194,1743365447069,-150.0,0.00048799,120]
[356881195,1743365447078,-195.90861049,0.000488,61]
[356881196,1743365447087,-41415.34267867,0.000488,41]
[356881197,1743365447096,-200014.94345269,0.000488,120]
[356881198,1743365447104,-43511.57306812,0.000488,120]
[356881199,1743365447114,-161.15,0.00049352,120]
[356881200,1743365447123,-260.28,0.0004937,2]
[356881201,1743365447132,-1936.27732615,0.00049518,15]
[356881202,1743365447141,-2053.74620811,0.00049547,15]
[356881203,1743365447151,-159.06856237,0.0005,120]
[356881204,1743365447160,-150.0,0.0005,30]
[356881205,1743365447170,-217.07,0.00050036,2]
[356881206,1743365447179,-664.35217856,0.00051074,120]
[356881207,1743365447188,-1065.0,0.00051363,30]
[356881208,1743365447197,-260.28,0.00051634,2]
[356881209,1743365447206,-1057.06,0.00051872,2]
[356881210,1743365447215,-1057.06,0.00051954,2]
[356881211,1743365447224,-1057.06,0.00052036,2]
[356881212,1743365447233,-1057.06,0.00052118,2]
[356881213,1743365447242,-1057.06,0.000522,2]
[356881214,1743365447251,-1057.06,0.00052282,2]
[356881215,1743365447260,-448.0,0.00052351,30]
[356881216,1743365447269,-1057.06,0.00052364,2]
[356881217,1743365447278,-1057.06,0.00052446,2]
[356881218,1743365447287,-1057.06,0.00052527,2]
[356881219,1743365447296,-1057.06,0.00052609,2]
[356881220,1743365447305,-152.0,0.00052658,3]
[356881221,1743365447314,-1057.06,0.00052691,2]
[356881222,1743365447324,-1057.06,0.00052773,2]
[356881223,1743365447333,-1057.06,0.00052855,2]
[356881224,1743365447342,-448.0,0.00052891,30]
[356881225,1743365447351,-1057.06,0.00052937,2]
[356881226,1743365447360,-1000.0,0.00053,2]
[356881227,1743365447369,-1057.06,0.00053019,2]
[356881228,1743365447378,-1057.06,0.00053101,2]
[356881229,1743365447387,-1057.06,0.00053183,2]
[356881230,1743365447396,-920.65,0.000532,60]
[356881231,1743365447405,-1057.06,0.00053264,2]
[356881232,1743365447414,-1057.06,0.00053346,2]
[356881233,1743365447428,-1057.06,0.00053428,2]
[356881234,1743365447437,-448.0,0.00053431,30]
[356881235,1743365447446,-260.28,0.00053898,2]
[356881236,1743365447456,-448.0,0.0005397,30]
[356881237,1743365447466,-238.67590778,0.0005397,30]
[356881238,1743365447475,-1065.0,0.00054066,30]
[356881239,1743365447484,-1936.27732615,0.0005431,15]
[356881240,1743365447493,-2053.74620811,0.00054314,15]
[356881241,1743365447505,-448.0,0.0005451,30]
[356881242,1743365447515,-150.56,0.00054784,120]
[356881243,1743365447524,-500.0,0.00054794,120]
[356881244,1743365447533,-500.0,0.00054794,120]
[356881245,1743365447542,-500.0,0.00054794,120]
[356881246,1743365447551,-500.0,0.00054794,120]
[356881247,1743365447561,-500.0,0.00054794,120]
[356881248,1743365447570,-500.0,0.00054794,7]
[356881249,1743365447580,-500.0,0.00054794,120]
[356881250,1743365447590,-500.0,0.00054794,120]
[356881251,1743365447599,-95569.77,0.00054794,7]
[356881252,1743365447609,-500.0,0.00054794,120]
[356881253,1743365447619,-318.77923226,0.00054794,2]
[356881254,1743365447629,-500.0,0.00054794,120]
[356881255,1743365447638,-500.0,0.00054794,2]
[356881256,1743365447647,-500.0,0.00054794,2]
[356881257,1743365447657,-500.0,0.00054794,2]
[356881258,1743365447666,-500.0,0.00054794,2]
[356881259,1743365447675,-500.0,0.00054794,2]
[356881260,1743365447685,-181.78996842,0.00054794,2]
[356881261,1743365447694,-500.0,0.00054794,2]
[356881262,1743365447703,-185.3652444,0.00054794,120]
[356881263,1743365447712,-150.0,0.00054795,120]
[356881264,1743365447721,-150.0,0.00054795,120]
[356881265,1743365447731,-500.0,0.00054795,5]
[356881266,1743365447740,-150.56,0.0005499,120]
[356881267,1743365447750,-500000.0,0.00055,120]
[356881268,1743365447760,-448.0,0.0005505,30]
[356881269,1743365447769,-500.0,0.00055068,120]
[356881270,1743365447779,-500.0,0.00055068,120]
[356881271,1743365447788,-500.0,0.00055068,120]
[356881272,1743365447797,-500.0,0.00055068,120]
[356881273,1743365447807,-500.0,0.00055068,7]
[356881274,1743365447816,-500.0,0.00055068,120]
[356881275,1743365447825,-500.0,0.00055068,120]
[356881276,1743365447834,-95569.77,0.00055068,7]
[356881277,1743365447843,-500.0,0.00055068,120]
[356881278,1743365447851,-500.0,0.00055068,120]
[356881279,1743365447861,-500.0,0.00055068,2]
[356881280,1743365447870,-150.0,0.00055135,120]
[356881281,1743365447879,-150.0,0.00055341,120]
[356881282,1743365447889,-500.0,0.00055342,120]
[356881283,1743365447898,-526.33300199,0.00055342,120]
[356881284,1743365447907,-500.0,0.00055342,120]
[356881285,1743365447917,-500.0,0.00055342,120]
[356881286,1743365447927,-278.6197562,0.00055342,7]
[356881287,1743365447936,-510.21518576,0.00055342,120]
[356881288,1743365447945,-500.0,0.00055342,120]
[356881289,1743365447955,-95569.77,0.00055342,7]
[356881290,1743365447965,-645.56860646,0.00055342,120]
[356881291,1743365447974,-500.0,0.00055342,120]
[356881292,1743365447984,-500.0,0.00055342,2]
[356881293,1743365447993,-150.0,0.00055476,120]
[356881294,1743365448003,-2108.16225278,0.00055516,30]
[356881295,1743365448012,-448.0,0.0005559,30]
[356881296,1743365448021,-150.56,0.00055606,120]
[356881297,1743365448030,-500.0,0.00055616,120]
[356881298,1743365448040,-363.32,0.00055616,120]
[356881299,1743365448050,-500.0,0.00055616,120]
[356881300,1743365448060,-500.0,0.00055616,120]
[356881301,1743365448070,-95569.77,0.00055616,7]
[356881302,1743365448080,-500.0,0.00055616,120]
[356881303,1743365448089,-500.0,0.00055616,2]
[356881304,1743365448099,-229.53653628,0.00055717,2]
[356881305,1743365448109,-150.0,0.00055817,120]
[356881306,1743365448118,-217.07,0.00055833,120]
[356881307,1743365448128,-500.0,0.0005589,120]
[356881308,1743365448139,-329.51037368,0.0005589,120]
[356881309,1743365448149,-500.0,0.0005589,120]
[356881310,1743365448159,-41902.89279738,0.0005589,7]
[356881311,1743365448174,-2171.76955443,0.0005589,7]
[356881312,1743365448185,-362.59999999,0.0005589,7]
[356881313,1743365448197,-5564.80212592,0.0005589,7]
[356881314,1743365521529,350.0,0.000149,3]
[356881315,1743365550693,-171.36272092,0.00014899,2]
[356881316,1743365550719,-65.35178873,0.000149,2]
[356881317,1743365569000,182.41738116,0.000148,2]
[356881318,1743365585981,-150.0,0.00014899,2]
[356881319,1743365602878,290.31121158,0.000148,2]
[356881320,1743365642447,-184.26630456,0.00014899,2]
[356881345,1743366059697,984.62,0.00033484,30]
[356881350,1743366085952,1083.8183443,0.00033484,30]
[356881353,1743366141725,151.0,0.00033484,30]
[356881354,1743366142468,156.587,0.00033484,30]
[356881355,1743366143079,162.380719,0.00033484,30]
[356881356,1743366143712,168.3888056,0.00033484,30]
[356881357,1743366144367,174.61919141,0.00033484,30]
[356881358,1743366145038,181.08010149,0.00033484,30]
[356881359,1743366145644,187.78006525,0.00033484,30]
[356881360,1743366146301,194.72792766,0.00033484,30]
[356881361,1743366146920,201.93286099,0.00033484,30]
[356881362,1743366147541,209.40437684,0.00033484,30]
[356881363,1743366148235,217.15233878,0.00033484,30]
[356881364,1743366148789,225.18697532,0.00033484,30]
[356881365,1743366149423,233.51889341,0.00033484,30]
[356881366,1743366150060,242.15909246,0.00033484,30]
[356881367,1743366150695,251.11897888,0.00033484,30]
[356881368,1743366151368,260.4103811,0.00033484,30]
[356881369,1743366152022,270.0455652,0.00033484,30]
[356881370,1743366152642,280.03725112,0.00033484,30]
[356881371,1743366153264,290.39862941,0.00033484,30]
[356881373,1743366154048,290.39862941,0.00033484,30]
[356881374,1743366161707,150.0,0.00033484,30]
[356881376,1743366179577,1006.95134377,0.00033484,120]
[356881383,1743366245616,484.68982363,0.00033484,60]
[356881387,1743366304785,1020.56026657,0.00033484,30]
[356881388,1743366308824,571.61463626,0.00033484,90]
[356881390,1743366311140,999.999997,0.00033484,120]
[356881391,1743366312961,443.42951822,0.00033484,91]
[356881392,1743366313080,439.55598685,0.00033484,30]
[356881393,1743366320267,539.16211038,0.00033484,120]
[356881394,1743366320446,421.82305016,9e-05,2]
[356881395,1743366320471,4766.56568108,9e-05,2]
[356881396,1743366321254,1962.35502271,0.00033484,120]
[356881397,1743366322237,639.48628418,0.00033484,120]
[356881398,1743366324364,2179.25336024,0.00033484,120]
[356881399,1743366327387,553.38201072,0.00033484,30]
[356881400,1743366328821,1591.1555461,0.00033484,30]
[356881401,1743366329526,634.02494415,0.00033484,30]
[356881402,1743366338276,160.93215726,0.00033484,120]
[356881403,1743366340501,1323.62388463,0.00033484,120]
[356881404,1743366342091,922.13759252,0.00033484,120]
[356881405,1743366344374,1599.84461187,0.00033484,120]
[356881406,1743366347553,345.83644705,0.00033484,120]
[356881407,1743366357108,-187.52852536,0.0001489,2]
[356881408,1743366357208,2125.00229268,0.00033484,30]
[356881409,1743366361643,573.76694464,0.00033484,90]
[356881411,1743366365916,558.82624492,0.00033484,120]
[356881412,1743366368822,822.69834373,0.00033484,120]
[356881413,1743366370195,187.20381623,0.00033484,60]
[356881414,1743366374285,253.41342651,0.00033484,30]
[356881415,1743366375448,1891.60364804,0.00033484,120]
[356881416,1743366377802,208.21555173,0.00033484,120]
[356881417,1743366383345,1899.10621958,0.00033484,120]
[356881418,1743366388892,1202.55058089,0.00033484,120]
[356881419,1743366392282,186.92282231,0.00033484,60]
[356881421,1743366414868,215.67981251,0.00033484,120]
[356881422,1743366421710,1806.51440955,0.00033484,120]
[356881423,1743366422250,1367.19482823,0.00033484,120]
[356881424,1743366434686,300.16801755,0.00033484,120]
[356881425,1743366439196,151.0,0.00033484,30]
[356881426,1743366439826,156.587,0.00033484,30]
[356881427,1743366441045,162.380719,0.00033484,30]
[356881428,1743366442373,168.3888056,0.00033484,30]
[356881429,1743366443228,174.61919141,0.00033484,30]
[356881430,1743366444426,181.08010149,0.00033484,30]
[356881431,1743366445082,187.78006525,0.00033484,30]
[356881432,1743366445748,194.72792766,0.00033484,30]
[356881433,1743366446305,201.93286099,0.00033484,30]
[356881434,1743366446920,209.40437684,0.00033484,30]
[356881435,1743366447541,217.15233878,0.00033484,30]
[356881436,1743366448171,225.18697532,0.00033484,30]
[356881437,1743366448786,233.51889341,0.00033484,30]
[356881438,1743366449397,233.51889341,0.00033484,30]
[356881439,1743366455816,745.35126065,0.00033484,120]
[356881441,1743366460370,2026.84454176,0.00033484,120]
[356881442,1743366465395,565.84929713,0.00033484,120]
[356881443,1743366468494,1081.49360246,0.00033484,120]
[356881444,1743366472669,162.41381836,0.00033484,30]
[356881445,1743366473582,749.09736412,0.00033484,120]
[356881446,1743366481656,594.37825479,0.00033484,30]
[356881447,1743366483163,951.31320818,0.00033484,120]
[356881448,1743366489995,269.6033505,0.00033484,30]
[356881450,1743366506100,1859.11909853,0.0001,2]
[356881451,1743366506775,349.87996752,0.00033484,120]
[356881452,1743366511001,1282.11402986,0.00033484,120]
[356881453,1743366511674,2030.24754058,0.00033484,120]
[356881454,1743366512382,199.72844848,0.00033484,30]
[356881455,1743366512743,750.76764336,0.00033484,30]
[356881456,1743366512825,2854.08070456,0.00033484,120]
[356881457,1743366513752,227.79811302,9.828e-05,2]
[356881458,1743366513784,189.44432579,0.00033484,30]
[356881459,1743366513905,888.750912,0.00033484,120]
[356881460,1743366514312,1000.0,0.00033484,30]
[356881461,1743366514694,1242.01140724,0.00033484,120]
[356881462,1743366515040,391.38710322,0.00033484,90]
[356881463,1743366517509,1292.86650469,0.00033484,120]
[356881464,1743366517570,1097.92893841,0.00033484,120]
[356881466,1743366518330,656.43985403,0.00033484,120]
[356881467,1743366518804,1201.23496821,0.0001,2]
[356881468,1743366520159,162.56888541,0.00033484,120]
[356881469,1743366520189,978.25616992,0.00033484,120]
[356881470,1743366521340,210.59992369,0.00033484,120]
[356881472,1743366521994,262.21834637,0.00033484,30]
[356881473,1743366522690,506.92862337,0.00033484,120]
[356881474,1743366523227,604.29870331,0.00033484,120]
[356881475,1743366523494,318.07748963,0.00033484,120]
[356881476,1743366525880,170.6052122,0.00033484,30]
[356881477,1743366567279,-735.27274277,0.0001489,2]
[356881478,1743366569589,-387.993082,0.0001489,2]
[356881484,1743366602339,350.0,0.00014895,3]
[356881501,1743366631869,-474.54987331,0.0001489,2]
[356881502,1743366631880,-20.22685019,0.0001489,2]
[356881503,1743366631895,-342.79664234,0.0001489,2]
[356881504,1743366631904,-17181.04426864,0.000149,2]
[356881505,1743366631980,-18752.08634263,0.000149,2]
[356881506,1743366631990,-500.0,0.000149,2]
[356881507,1743366631999,-1000.0,0.000149,2]
[356881508,1743366632008,-170.82316711,0.000149,2]
[356881509,1743366632019,-371.79482992,0.000149,2]
[356881510,1743366632028,-957.12867589,0.000149,2]
[356881511,1743366632038,-2500.0,0.000149,2]
[356881512,1743366632048,-7224.16575914,0.000149,2]
[356881513,1743366632061,-661.584,0.000149,2]
[356881514,1743366632095,-4888.34487795,0.000149,2]
[356881515,1743366632105,-153.02435752,0.000149,2]
[356881516,1743366632115,-207.4207163,0.000149,2]
[356881517,1743366632124,-169.56705614,0.0001499,2]
[356881518,1743366632133,-10930.17564294,0.00015,2]
[356881571,1743366637786,-5462.43173528,0.00015,2]
[356881572,1743366637955,-434.63508886,0.00015,2]
[356881573,1743366637968,-79127.28072535,0.00015,2]
[356881588,1743366639961,-2692.53470807,0.00015,2]
[356881589,1743366640126,-336.0864812,0.00015,2]
[356881762,1743366721808,350.0,0.0001495,3]
[356881763,1743366724528,151.0,0.00033484,30]
[356881764,1743366725152,156.587,0.00033484,30]
[356881765,1743366725801,162.380719,0.00033484,30]
[356881766,1743366726468,168.3888056,0.00033484,30]
[356881767,1743366727109,174.61919141,0.00033484,30]
[356881768,1743366728296,181.08010149,0.00033484,30]
[356881769,1743366728984,187.78006525,0.00033484,30]
[356881770,1743366729626,194.72792766,0.00033484,30]
[356881771,1743366730239,201.93286099,0.00033484,30]
[356881772,1743366730874,209.40437684,0.00033484,30]
[356881773,1743366731475,217.15233878,0.00033484,30]
[356881774,1743366732689,225.18697532,0.00033484,30]
[356881775,1743366733343,233.51889341,0.00033484,30]
[356881776,1743366733983,242.15909246,0.00033484,30]
[356881777,1743366734600,251.11897888,0.00033484,30]
[356881778,1743366735225,260.4103811,0.00033484,30]
[356881779,1743366735831,270.0455652,0.00033484,30]
[356881780,1743366736479,280.03725112,0.00033484,30]
[356881781,1743366737113,290.39862941,0.00033484,30]
[356881782,1743366737737,290.39862941,0.00033484,30]
[356881783,1743366740102,208.54020553,0.00033484,30]
[356881784,1743366759587,1945.28213916,0.00014825,2]
[356881785,1743366759608,2880.61694484,0.00014825,2]
[356881786,1743366826545,50164.0,0.00033484,120]